Cogmind - Beta 15 @@@ ROGUE MODE // 2025.06.29 @ 13:23:03 Player: f3-rnm Result: Destroyed by P-70 Sage with Tesla Rifle Performance ------------- Evolutions (6) 3000 Regions Visited (11) 2200 Robots Destroyed (66) 330 Value Destroyed (3237) 3237 Prototype IDs (30) 600 Alien Tech Used (1) 200 Bonus (2438) 2438 TOTAL SCORE: 12005 Bonus ------- High Alert Combat Kills 501 Follower Combat Kills 861 Registered with UFD 300 Met Optimus in HQ 500 Met Zhirov 300 Friendly Fire -24 Cogmind --------- Core Integrity 0/1150 Matter 54/300 Energy 98/100 System Corruption 7% Temperature Cool (0) Movement Core (50) Location -4/Upper Caves Parts ------- > --- POWER (2) -------- (None) > --- PROPULSION (2) --- (None) > --- UTILITY (11) ----- (None) > --- WEAPON (4) ------- (None) > --- INVENTORY (5) ---- Overtuned Huge Scrapsphere Large Storage Unit Long-range IFF Parser Scatter Rocket Array Peak State ------------ > --- POWER ------------ Light Fission Core Fusion Reactor > --- PROPULSION ------- Overtuned Huge Scrapsphere > --- UTILITY ---------- Scrap Suit Advanced Cooling System Large Storage Unit Machine Analyzer Spectral Analyzer Core Analyzer Improved Weapon Cycler Advanced Transmission Jammer Advanced Shield Generator Advanced Hacking Suite > --- WEAPON ----------- Overtuned Coil Gun Overtuned Coil Gun Overtuned Coil Gun Overtuned Coil Gun > --- INVENTORY -------- Neutrino Core Micro Fission Core Overtuned Huge Scrapsphere Scrap Suit Improved Cooling System Large Matter Pod Long-range IFF Parser Precision Matter Filter High-powered Tractor Beam Overtuned Coil Gun Scatter Rocket Array Scatter Rocket Array Multitool [Rating: 111] Favorites ----------- Power Subdweller Power Source Engine Subdweller Power Source Power Core Nuclear Core Reactor Fusion Reactor Propulsion Wheel Treads Light Treads Wheel Wheel Utility Humpback Device Scrap Suit Storage Humpback Processor Machine Analyzer Hackware Advanced Hacking Suite Protection Improved Medium Armor Plating Weapon Overtuned Coil Gun Energy Gun Spread Laser Ballistic Gun Overtuned Coil Gun Ballistic Cannon Battle Cannon Launcher Scatter Rocket Array Special Weapon CPS Tube Impact Weapon Makeshift Hammer Build | -11 -10 -10 -7 -5 -5 -5 -5 -4 -4 -4 -4 ------- Run | Yrd Mat Sub Scr Fac Upp Upp Zhi Pro Fac Upp Upp Slots Evolved 12 | . . . . 10 . . . . 2 . . Power 1 | . . . . 1 . . . . . . . Propulsion . | . . . . . . . . . . . . Utility 9 | . . . . 7 . . . . 2 . . Weapon 2 | . . . . 2 . . . . . . . Parts Attached 68 | 6 . 9 7 25 1 1 8 3 8 . . Power 9 | 1 . 1 1 1 1 1 1 . 2 . . Engine 2 | 1 . 1 . . . . . . . . . Core 6 | . . . 1 1 1 1 . . 2 . . Reactor 1 | . . . . . . . 1 . . . . Propulsion 7 | 2 . 3 1 1 . . . . . . . Treads 2 | 2 . . . . . . . . . . . Leg . | . . . . . . . . . . . . Wheel 5 | . . 3 1 1 . . . . . . . Hover . | . . . . . . . . . . . . Flight . | . . . . . . . . . . . . Utility 25 | 1 . 1 . 14 . . 5 . 4 . . Device 15 | . . . . 8 . . 4 . 3 . . Storage 3 | 1 . 1 . 1 . . . . . . . Processor 3 | . . . . 2 . . . . 1 . . Hackware 2 | . . . . 1 . . 1 . . . . Protection 2 | . . . . 2 . . . . . . . Artifact . | . . . . . . . . . . . . Weapon 27 | 2 . 4 5 9 . . 2 3 2 . . Energy Gun 6 | . . 1 3 2 . . . . . . . Energy Cannon . | . . . . . . . . . . . . Ballistic Gun 10 | 2 . 2 . 4 . . 1 . 1 . . Ballistic Cannon 2 | . . 1 1 . . . . . . . . Launcher 4 | . . . 1 . . . . 2 1 . . Special Weapon 4 | . . . . 2 . . 1 1 . . . Impact Weapon 1 | . . . . 1 . . . . . . . Slashing Weapon . | . . . . . . . . . . . . Piercing Weapon . | . . . . . . . . . . . . Special Melee Weapon . | . . . . . . . . . . . . Unidentified Prototypes 5 | . . . . . . . 3 2 . . . Corrupted Parts 1 | . . 1 . . . . . . . . . System Corruption 4 | . . 4 . . . . . . . . . Parts Lost 20 | . . 3 . 1 . 1 . . 15 . . Power 6 | . . . . 1 . 1 . . 4 . . Propulsion 2 | . . 2 . . . . . . . . . Utility 5 | . . . . . . . . . 5 . . Weapon 7 | . . 1 . . . . . . 6 . . Highest Loss Streak 8 | . . 1 . 1 . 1 . . 8 . . To Critical Strikes 1 | . . . . . . . . . 1 . . Average Backups 17 | 2 4 15 22 12 12 12 12 12 11 3 4 Power 1 | . 1 1 2 . . . 1 1 1 . . Propulsion 2 | 1 2 2 3 1 1 1 1 1 1 1 1 Utility 6 | . . 5 7 6 7 7 8 8 5 2 2 Weapon 4 | . 1 3 6 3 2 2 1 1 2 . 1 Tool/Special . | . . . . . . . . . . . . Unused Backups 28 | . . 2 9 8 . . 2 1 5 . 1 Power 4 | . . 1 2 . . . 1 . . . . Propulsion 4 | . . 1 1 1 . . . . . . 1 Utility 13 | . . . 5 2 . . 1 1 4 . . Weapon 5 | . . . 1 4 . . . . . . . Tool/Special 2 | . . . . 1 . . . . 1 . . Average Slot Usage (%) 68 | . 85 79 57 89 84 87 69 87 83 . . Engine 8 | . 14 14 9 . . . . . . . . Core 3 | . . . 4 11 7 10 6 5 5 . . Treads 1 | . 28 3 . . . . . . . . . Wheel 17 | . . 19 21 6 5 5 5 5 4 . . Device 4 | . . . . 21 23 23 23 23 24 . . Storage 11 | . 14 13 14 5 5 5 5 5 4 . . Processor 2 | . . . . 8 11 11 11 11 14 . . Energy Gun 5 | . . 4 7 6 . . . . . . . Ballistic Gun 7 | . 28 12 . 14 23 23 4 22 18 . . Ballistic Cannon 3 | . . 10 . . . . . . . . . Peak Build Rating 111 | 6 6 15 25 87 87 90 98 97 111 8 2 Average Rating 26 | 4 6 10 13 75 83 87 74 95 104 2 2 On Entrance 42 | . 6 6 15 22 82 87 90 97 95 2 2 Naked Turns 320 | . . . . . . . . . 11 218 91 Heaviest Build 213 | 13 13 212 213 71 62 69 69 67 90 8 . Greatest Support 40 | 40 40 40 30 30 20 20 20 20 20 3 3 Greatest Overweight (x) 21 | . . 21 21 3 3 3 3 3 4 2 . Average Overweight (x) 9 | . . 11 19 2 2 2 2 2 2 . . Largest Inventory Capacity 35 | 8 8 35 35 35 15 15 15 15 15 5 5 Average Capacity 29 | 7 8 32 35 15 15 15 15 15 14 5 5 Most Carried 35 | 4 7 30 35 32 14 15 15 15 15 5 5 Average Carried 22 | 2 4 21 28 15 14 14 14 14 13 4 5 Final Capacity 35 | 8 8 35 35 15 15 15 15 15 5 5 5 Final Carried 33 | 4 7 30 33 14 14 15 15 15 5 5 5 Class Distribution -------------------- 74% | Hauler-Mutant 14% | Scavenger-Scrapper 6% | Mutant Dominant Class ---------------- Mutant | -10/Materials Hauler-Mutant | -10/Subcaves Hauler-Mutant | -7/Scraptown Scrapper | -5/Factory Scavenger-Scrapper | -5/Upper Caves Scavenger-Scrapper | -5/Upper Caves Commander-Mutant | -5/Zhirov Scavenger-Scrapper | -4/Proximity Caves Scavenger-Scrapper | -4/Factory Mutant | -4/Upper Caves Mutant | -4/Upper Caves Resources | -11 -10 -10 -7 -5 -5 -5 -5 -4 -4 -4 -4 ----------- Run | Yrd Mat Sub Scr Fac Upp Upp Zhi Pro Fac Upp Upp Matter Collected 4649 | 157 . 1294 272 580 175 207 127 1032 752 53 . Remotely . | . . . . . . . . . . . . Salvage Created 4166 | . . 442 . 1264 . 153 208 969 1130 . . Parts 238 | . . 31 . 82 . 5 25 34 61 . . Haulers Intercepted . | . . . . . . . . . . . . Recyclers Shooed 1 | . . . . . . . . . 1 . . Parts Field Recycled . | . . . . . . . . . . . . Retrieved Matter . | . . . . . . . . . . . . Parts Self-Destructed 82 | . . 13 . . 4 11 20 33 . . 1 Prevented 6 | . . . . . 4 . . . . . 2 Kills | -11 -10 -10 -7 -5 -5 -5 -5 -4 -4 -4 -4 ------- Run | Yrd Mat Sub Scr Fac Upp Upp Zhi Pro Fac Upp Upp Combat Hostiles Destroyed 51 | . . 13 . 12 . 2 . 7 17 . . Guns 40 | . . 7 . 11 . 2 . 7 13 . . Cannons 5 | . . 5 . . . . . . . . . AOE 6 | . . 1 . 1 . . . . 4 . . Classes Destroyed 16 | . . 4 . 9 . . . 2 1 . . Worker 3 | . . . . 2 . . . . 1 . . Builder 3 | . . . . 2 . . . . 1 . . Recycler 1 | . . . . 1 . . . . . . . Operator 1 | . . . . . . . . . 1 . . Watcher 3 | . . . . 1 . . . . 2 . . Swarmer 3 | . . 3 . . . . . . . . . Grunt 8 | . . . . 4 . 1 . . 3 . . Protector 2 | . . . . . . . . 2 . . . Sentry 9 | . . 1 . 2 . 1 . 1 4 . . Demolisher 4 | . . . . . . . . 4 . . . Hunter 9 | . . . . 4 . . . . 5 . . Programmer 4 | . . . . 1 . . . . 3 . . Heavy 3 | . . . . 1 . . . . 2 . . Artisan 1 | . . 1 . . . . . . . . . Subdweller 9 | . . 9 . . . . . . . . . Scrapoid 4 | . . . . 3 . . . 1 . . . Best Kill Streak 5 | . . 3 . 5 . 2 . 2 5 . . Combat Bots Only 4 | . . 3 . 4 . 2 . 2 3 . . Max Kills in Single Turn 3 | . . 1 . 3 . 1 . 1 2 . . Gunslinging . | . . . . . . . . . . . . Exploded 2 | . . 1 . 1 . . . . 2 . . Melee . | . . . . . . . . . . . . Uniques/NPCs Destroyed . | . . . . . . . . . . . . Combat | -11 -10 -10 -7 -5 -5 -5 -5 -4 -4 -4 -4 -------- Run | Yrd Mat Sub Scr Fac Upp Upp Zhi Pro Fac Upp Upp Hostile Shots Fired 334 | . . 62 . 29 6 9 . 5 190 15 18 Missed 122 | . . 19 . 6 1 6 . 3 73 6 8 Hits 212 | . . 43 . 23 5 3 . 2 117 9 10 Projectile 212 | . . 43 . 23 5 3 . 2 117 9 10 AOE 6 | . . . . . . . . 4 2 . . Critical Strikes 12 | . . . . 1 . . . . 9 . 2 Part Disruptions 1 | . . . . . . . . . 1 . . Damage Taken 4825 | . . 895 60 719 86 80 . 227 2384 175 199 Core 1486 | . . 153 . 86 17 . . 67 789 175 199 Absorbed by Shields 500 | . . . . . . . . . 500 . . Regen/Repaired (Parts) 120 | . . . . 31 10 20 21 . 38 . . Core Remaining (%) 73 | 100 . . 38 . . . . 83 . . . Volleys Fired 271 | 2 . 99 . 40 5 11 9 48 56 1 . Largest 4 | 2 . 2 . 4 4 4 1 4 4 1 . Hottest 260 | 40 . 61 . 260 128 128 32 128 128 50 . Shots Fired 750 | 4 . 174 . 126 20 44 9 189 183 1 . Gun 668 | 4 . 106 . 122 20 44 7 188 177 . . Cannon 68 | . . 68 . . . . . . . . . Launcher 7 | . . . . . . . . . 6 1 . Special 7 | . . . . 4 . . 2 1 . . . Kinetic 706 | 4 . 157 . 109 20 44 7 188 177 . . Thermal 13 | . . . . 13 . . . . . . . Explosive 7 | . . . . . . . . . 6 1 . Electromagnetic 17 | . . 17 . . . . . . . . . Robot Hit Streak 12 | 2 . 11 . 8 2 7 6 12 6 . . Robot Miss Streak 8 | 1 . 2 . 4 7 3 1 7 8 . . Penetration Max 1 | . . . . 1 . . 1 1 1 . . Secondary Targets 7 | . . . . 2 . . . . 5 . . Max Gunslinging Chain 1 | . . . . 1 . . . . 1 . . Shots Hit Robots 339 | 2 . 61 . 65 5 24 7 91 84 . . Core Hits 210 | . . 23 . 53 2 6 4 53 69 . . Critical Kills 9 | . . . . 2 . . . 5 2 . . Critical Parts Destroyed 16 | . . . . 6 . 3 . 4 3 . . Critical Strikes 27 | . . 2 . 8 . 3 . 9 5 . . Destroy 25 | . . . . 8 . 3 . 9 5 . . Blast 1 | . . 1 . . . . . . . . . Corrupt 1 | . . 1 . . . . . . . . . Melee Attacks 1 | . . . . 1 . . . . . . . Impact 1 | . . . . 1 . . . . . . . Slashing . | . . . . . . . . . . . . Piercing . | . . . . . . . . . . . . Sneak Attacks . | . . . . . . . . . . . . Combat Hostiles . | . . . . . . . . . . . . Follow-up Attacks . | . . . . . . . . . . . . Damage Inflicted 9612 | 24 . 949 . 2021 100 723 208 2188 3399 . . Guns 8139 | 24 . 565 . 1855 100 723 208 2188 2476 . . Cannons 359 | . . 359 . . . . . . . . . Explosions 1114 | . . 25 . 166 . . . . 923 . . Melee . | . . . . . . . . . . . . Ramming . | . . . . . . . . . . . . Kinetic 8202 | 24 . 761 . 1722 100 723 208 2188 2476 . . Thermal 240 | . . 25 . 133 . . . . 82 . . Explosive 1007 | . . . . 166 . . . . 841 . . Electromagnetic 163 | . . 163 . . . . . . . . . Impact . | . . . . . . . . . . . . Slashing . | . . . . . . . . . . . . Piercing . | . . . . . . . . . . . . Highest Corruption 7 | . . 4 4 1 1 1 1 1 5 5 7 Average Corruption 3 | . . 4 4 1 1 1 1 1 2 5 6 Corruption Purged . | . . . . . . . . . . . . Corruption Blocked . | . . . . . . . . . . . . Effects 123 | . . 20 75 2 1 4 4 8 1 6 2 Message Errors 32 | . . 5 18 1 1 . 1 3 1 2 . Matter Fused 30 | . . 4 22 . . . 2 2 . . . Heat Flow Errors 11 | . . 1 8 . . 1 . 1 . . . Energy Discharges 19 | . . 3 8 1 . 2 . 1 . 2 2 Parts Fused 1 | . . . 1 . . . . . . . . Data Loss (minor) 18 | . . 4 10 . . 1 . 1 . 2 . Data Loss (major) 7 | . . 1 5 . . . 1 . . . . Misfires 1 | . . 1 . . . . . . . . . Alerts 4 | . . 1 3 . . . . . . . . Overload Shots . | . . . . . . . . . . . . Overflow Damage 17 | . . . . . . . . . 17 . . Projectiles . | . . . . . . . . . . . . Explosions 17 | . . . . . . . . . 17 . . Melee . | . . . . . . . . . . . . Knockbacks 3 | . . 3 . . . . . . . . . Impact . | . . . . . . . . . . . . Kinetic 3 | . . 3 . . . . . . . . . Secondary . | . . . . . . . . . . . . Self-Inflicted Damage 211 | . . . . 88 . . . . 123 . . Shots 7 | . . . . 1 . . . . 6 . . Rammed . | . . . . . . . . . . . . Targets Rammed . | . . . . . . . . . . . . Kicked . | . . . . . . . . . . . . Crushed . | . . . . . . . . . . . . Highest Temperature 328 | . . 63 244 212 268 328 . 300 285 . . Average Temperature 99 | . . 40 84 71 173 137 . 111 96 . . Received Heat Transfer 421 | . . 123 . 103 . 12 . . 144 39 . Effects 2 | . . . . . . 2 . . . . . Interference 2 | . . . . . . 2 . . . . . Siege Activations . | . . . . . . . . . . . . Martial Activations . | . . . . . . . . . . . . Shielding Activations . | . . . . . . . . . . . . Robots Disrupted . | . . . . . . . . . . . . Combat Hostiles . | . . . . . . . . . . . . Robots Corrupted . | . . . . . . . . . . . . Combat Hostiles . | . . . . . . . . . . . . Parts Fried 2 | . . 2 . . . . . . . . . Impact Corruptions . | . . . . . . . . . . . . Robots Melted . | . . . . . . . . . . . . Combat Hostiles . | . . . . . . . . . . . . Parts Melted 3 | . . . . 3 . . . . . . . Heat Transferred 50 | . . . . . . . . . 50 . . Parts Sabotaged . | . . . . . . . . . . . . Parts Stolen . | . . . . . . . . . . . . Parts Stripped . | . . . . . . . . . . . . Power Chain Reactions 1 | . . 1 . . . . . . . . . Alert | -11 -10 -10 -7 -5 -5 -5 -5 -4 -4 -4 -4 ------- Run | Yrd Mat Sub Scr Fac Upp Upp Zhi Pro Fac Upp Upp Maximum Alert Level 3 | . . . . 3 . . . . 3 . . Low Security (%) 49 | 100 100 . . 54 . . . . 27 . . Level 1 11 | . . . . 13 . . . . 12 . . Level 2 21 | . . . . 17 . . . . 32 . . Level 3 17 | . . . . 14 . . . . 27 . . Level 4 . | . . . . . . . . . . . . Level 5 . | . . . . . . . . . . . . High Security . | . . . . . . . . . . . . Max Security . | . . . . . . . . . . . . Peak Influence 1019 | . . . . 873 . . . . 1019 . . Initial . | . . . . . . . . . . . . Average 322 | . . . . 284 . . . . 480 . . Influence Increases 3212 | . . 90 . 1149 42 126 15 170 1425 105 90 Destroy 0b10 Robot/C 1200 | . . 80 . 420 20 80 . 100 500 . . Destroy 0b10 Robot/NC 145 | . . . . 50 . . 15 40 40 . . Destroy Leader 300 | . . 10 . 116 10 10 . . 154 . . Allied During Kill 372 | . . . . 205 12 36 . 30 89 . . Successful Hack 14 | . . . . . . . . . 14 . . Disable Machine 255 | . . . . 120 . . . . 135 . . Destroy Structure 716 | . . . . 238 . . . . 478 . . Partial Spotted 15 | . . . . . . . . . 15 . . Lose Combat Pursuer 195 | . . . . . . . . . . 105 90 Influence Decreases 2698 | . . 20 70 292 408 327 305 170 488 468 150 Entered New Map 1231 | . . . 70 . 318 95 290 . . 348 110 Time Decay 1177 | . . 20 . 242 90 222 15 170 258 120 40 Lost Part 170 | . . . . 10 . 10 . . 150 . . Lost Ally 120 | . . . . 40 . . . . 80 . . Squads Dispatched 13 | . . . . 7 . . . . 6 . . Investigation 3 | . . . . 2 . . . . 1 . . Extermination 3 | . . . . 1 . . . . 2 . . Reinforcement 5 | . . . . 3 . . . . 2 . . Assault . | . . . . . . . . . . . . Garrison 2 | . . . . 1 . . . . 1 . . Intercept . | . . . . . . . . . . . . Searches Triggered . | . . . . . . . . . . . . Construction Impeded 1 | . . . . 1 . . . . . . . Haulers Reinforced 2 | . . . . 2 . . . . . . . Active Scanning Responses . | . . . . . . . . . . . . Cargo Convoy Interrupts . | . . . . . . . . . . . . Stealth | -11 -10 -10 -7 -5 -5 -5 -5 -4 -4 -4 -4 --------- Run | Yrd Mat Sub Scr Fac Upp Upp Zhi Pro Fac Upp Upp Distress Signals 8 | . . . . . . . . 6 2 . . Communications Jammed 26 | . . . . 1 . . . . 25 . . Distress Signals 24 | . . . . . . . . . 24 . . Times Spotted 106 | . . 14 . 24 1 4 . 14 35 7 7 Peak Tracking Total 9 | . . 3 . 4 1 2 . 3 9 7 6 Tactical Retreats 5 | . . . . . . . . . . 4 1 Traps | -11 -10 -10 -7 -5 -5 -5 -5 -4 -4 -4 -4 ------- Run | Yrd Mat Sub Scr Fac Upp Upp Zhi Pro Fac Upp Upp Traps Triggered 5 | . . 2 1 . . . . 1 1 . . Indirectly . | . . . . . . . . . . . . Trap Hack Attempts . | . . . . . . . . . . . . Triggered . | . . . . . . . . . . . . Disarmed . | . . . . . . . . . . . . Reprogrammed . | . . . . . . . . . . . . Reused . | . . . . . . . . . . . . Traps Extracted . | . . . . . . . . . . . . Installed 1 | . . . 1 . . . . . . . . Triggered . | . . . . . . . . . . . . Most Traps Carried 3 | . . 2 3 3 . . . . . . . Machines | -11 -10 -10 -7 -5 -5 -5 -5 -4 -4 -4 -4 ---------- Run | Yrd Mat Sub Scr Fac Upp Upp Zhi Pro Fac Upp Upp Machines Disabled 22 | . . . . 8 . . 2 3 9 . . Max in Single Turn 2 | . . . . 2 . . 1 1 2 . . Garrison Access 2 | . . . . 2 . . . . . . . Machines Repaired . | . . . . . . . . . . . . Machines Dismantled . | . . . . . . . . . . . . Machines Sabotaged . | . . . . . . . . . . . . Overloaded Fab Kills . | . . . . . . . . . . . . Hacking | -11 -10 -10 -7 -5 -5 -5 -5 -4 -4 -4 -4 --------- Run | Yrd Mat Sub Scr Fac Upp Upp Zhi Pro Fac Upp Upp Machines Accessed 14 | . . 1 2 5 . . 4 . 2 . . Terminals 3 | . . . . 1 . . . . 2 . . Fabricators . | . . . . . . . . . . . . Repair Stations . | . . . . . . . . . . . . Recycling Units 2 | . . . . 2 . . . . . . . Scanalyzers . | . . . . . . . . . . . . Garrison Access 2 | . . . . 2 . . . . . . . Total Hacks 37 | . . 5 5 6 . . 17 . 4 . . Successful 33 | . . 5 5 5 . . 17 . 1 . . Failed 4 | . . . . 1 . . . . 3 . . Catastrophic 1 | . . . . . . . . . 1 . . Database Lockouts . | . . . . . . . . . . . . Manual 3 | . . . . 3 . . . . . . . Terminals 5 | . . . . 1 . . . . 4 . . Fabricators . | . . . . . . . . . . . . Repair Stations . | . . . . . . . . . . . . Recycling Units 2 | . . . . 2 . . . . . . . Scanalyzers . | . . . . . . . . . . . . Garrison Access 3 | . . . . 3 . . . . . . . Terminal Hacks 29 | . . 5 5 1 . . 17 . 1 . . Record 14 | . . 5 4 . . . 5 . . . . Part Schematic 4 | . . . . . . . 4 . . . . Robot Analysis 4 | . . . . . . . 4 . . . . Prototype ID Bank 4 | . . . . . . . 4 . . . . Branch Access Points 2 | . . . . 1 . . . . 1 . . Proto ID Catalog 1 | . . . 1 . . . . . . . . Fabricator Hacks . | . . . . . . . . . . . . Repair Station Hacks . | . . . . . . . . . . . . Recycling Unit Hacks . | . . . . . . . . . . . . Scanalyzer . | . . . . . . . . . . . . Garrison Access Hacks 2 | . . . . 2 . . . . . . . Seal Access 2 | . . . . 2 . . . . . . . Unauthorized Hacks 2 | . . . . 2 . . . . . . . Terminals . | . . . . . . . . . . . . Fabricators . | . . . . . . . . . . . . Repair Stations . | . . . . . . . . . . . . Recycling Units 2 | . . . . 2 . . . . . . . Scrapoids 2 | . . . . 2 . . . . . . . Scanalyzers . | . . . . . . . . . . . . Garrison Access . | . . . . . . . . . . . . Data Cores Recovered 1 | . . . . 1 . . . . . . . Used 1 | . . . . 1 . . . . . . . Hacking Detections 3 | . . . . 1 . . . . 2 . . Full Trace Events 1 | . . . . . . . . . 1 . . Feedback Events . | . . . . . . . . . . . . Feedback Blocked . | . . . . . . . . . . . . Robot Schematics Acquired . | . . . . . . . . . . . . Robots Built . | . . . . . . . . . . . . Authchips . | . . . . . . . . . . . . Time . | . . . . . . . . . . . . Total Robot Build Rating . | . . . . . . . . . . . . Part Schematics Acquired 5 | . . . 1 . . . 4 . . . . Parts Built . | . . . . . . . . . . . . Authchips . | . . . . . . . . . . . . Time . | . . . . . . . . . . . . Total Part Build Rating . | . . . . . . . . . . . . Parts Repaired . | . . . . . . . . . . . . Time . | . . . . . . . . . . . . Parts Recycled . | . . . . . . . . . . . . Recycled Matter . | . . . . . . . . . . . . Retrieved Matter . | . . . . . . . . . . . . Retrieved Components . | . . . . . . . . . . . . Parts Scanalyzed . | . . . . . . . . . . . . Part Schematics Acquired . | . . . . . . . . . . . . Parts Damaged . | . . . . . . . . . . . . Bothacking | -11 -10 -10 -7 -5 -5 -5 -5 -4 -4 -4 -4 ------------ Run | Yrd Mat Sub Scr Fac Upp Upp Zhi Pro Fac Upp Upp Used RIF Installer . | . . . . . . . . . . . . Robots Hacked . | . . . . . . . . . . . . Non-combat . | . . . . . . . . . . . . Combat . | . . . . . . . . . . . . Robot Hacks Applied . | . . . . . . . . . . . . Relay Couplers Released 3 | . . . . 3 . . . . . . . Programmers 3 | . . . . 3 . . . . . . . Fabnet Peak Effective % . | . . . . . . . . . . . . Robots Rewired 2 | . . . . . . . . 2 . . . Allies Hacked . | . . . . . . . . . . . . Hacks Repelled . | . . . . . . . . . . . . Allies | -11 -10 -10 -7 -5 -5 -5 -5 -4 -4 -4 -4 -------- Run | Yrd Mat Sub Scr Fac Upp Upp Zhi Pro Fac Upp Upp Total Allies 12 | . . . . 10 . . . 2 . . . Largest Group 6 | . . . . 5 4 4 4 6 5 . . Highest-Rated Group 286 | . . . . 238 188 188 188 286 239 . . Highest-Rated Ally 50 | . . . . 50 47 47 47 49 49 . . Total Orders 11 | . . . . 2 . . 1 4 4 . . STAY 7 | . . . . 1 . . 1 2 3 . . FOLLOW 4 | . . . . 1 . . . 2 1 . . Ally Attacks 155 | . . . . 101 4 8 . 12 30 . . Total Damage 4933 | . . . . 1990 57 201 . 427 2258 . . Kills 30 | . . . . 13 1 2 . 2 12 . . Allies Corrupted . | . . . . . . . . . . . . Allies Melted . | . . . . . . . . . . . . Intel | -11 -10 -10 -7 -5 -5 -5 -5 -4 -4 -4 -4 ------- Run | Yrd Mat Sub Scr Fac Upp Upp Zhi Pro Fac Upp Upp Active Infowar (turns) 2949 | . . . . 672 190 478 322 699 588 . . Optics 588 | . . . . . . . . . 588 . . IFF 277 | . . . . . . . 122 155 . . . Terrain 137 | . . . . 137 . . . . . . . Machine Analysis 2949 | . . . . 672 190 478 322 699 588 . . Jamming 2243 | . . . . 100 190 478 319 699 457 . . Robot Analysis Total 4 | . . . . . . . 4 . . . . Derelict Logs Recovered 9 | . . 1 5 . . 1 . . . 1 1 Drone Launches . | . . . . . . . . . . . . Drone Recoveries . | . . . . . . . . . . . . Exploration | -11 -10 -10 -7 -5 -5 -5 -5 -4 -4 -4 -4 ------------- Run | Yrd Mat Sub Scr Fac Upp Upp Zhi Pro Fac Upp Upp Turns Passed 15523 | 86 130 4805 7197 675 190 478 322 699 607 243 91 Spaces Moved 6900 | 44 68 1711 1892 529 194 465 308 612 448 447 182 Core 653 | 2 . 4 . . . . . . 18 447 182 Treads 358 | 42 68 248 . . . . . . . . . Legs . | . . . . . . . . . . . . Wheels 5889 | . . 1459 1892 529 194 465 308 612 430 . . Hover . | . . . . . . . . . . . . Flight . | . . . . . . . . . . . . Fastest Speed 50 | 50 160 160 179 90 90 90 90 90 50 50 50 Average Speed 211 | 155 160 258 377 103 93 99 90 99 97 53 50 Slowest Speed 560 | 160 160 560 395 119 100 100 100 100 110 150 50 Overloaded Moves . | . . . . . . . . . . . . Propulsion Burnouts . | . . . . . . . . . . . . Robots Hopped . | . . . . . . . . . . . . Potential Cave-ins 5 | . . . . . . . . . 5 . . Cave-ins Triggered . | . . . . . . . . . . . . Exploration Rate (%) 43 | 4 14 68 68 16 37 69 59 62 24 73 32 Regions Visited 11 Branch Regions 8 Pre-discovered Areas 6 | . . 1 1 . . . 3 . . 1 . Known Exits Taken 3 | . . . . 1 . . . 1 1 . . Unknown Exits Taken 8 | 1 1 1 1 . 1 1 1 . . 1 . Scrap Searched 22 | . . 13 6 . . 3 . . . . . Spaces Dug 25 | . . 3 . 1 . . . . 21 . . Terrain Destroyed 506 | . . 6 . 120 12 20 2 60 249 37 . Melee 1 | . . . . 1 . . . . . . . Projectile 241 | . . 4 . 40 12 20 2 60 103 . . AOE 263 | . . 2 . 79 . . . . 145 37 . Terrain Rammed . | . . . . . . . . . . . . Walls Destroyed . | . . . . . . . . . . . . Machines Disabled . | . . . . . . . . . . . . Actions | -11 -10 -10 -7 -5 -5 -5 -5 -4 -4 -4 -4 --------- Run | Yrd Mat Sub Scr Fac Upp Upp Zhi Pro Fac Upp Upp Total 7596 | 55 89 1927 1956 642 199 477 350 692 578 449 182 Wait 132 | . 19 67 . . . . . . 46 . . Move 6889 | 43 67 1710 1891 528 193 464 307 611 447 446 182 Hop . | . . . . . . . . . . . . Pick Up 97 | 4 3 30 28 15 . 1 4 4 8 . . Fast Attach 30 | 6 . 2 2 5 1 1 10 2 1 . . Attach 34 | . . 4 2 14 . . 2 1 10 1 . Detach 6 | . . 2 . . . . . 1 2 1 . Swap 29 | . . 7 6 7 . . 3 2 4 . . Drop 89 | . . 6 24 32 . . 15 8 4 . . Fire 271 | 2 . 99 . 40 5 11 9 48 56 1 . Melee 1 | . . . . 1 . . . . . . . Ram . | . . . . . . . . . . . . Kick . | . . . . . . . . . . . . Crush . | . . . . . . . . . . . . Escape Stasis 8 | . . . . . . . . 8 . . . Rewire 9 | . . . 2 . . . . 7 . . . Trap 1 | . . . 1 . . . . . . . . Miscellaneous . | . . . . . . . . . . . . Route ------- -11/Scrapyard -10/Materials -10/Subcaves (discovered 2 exits: *Scr x2) -7/Scraptown (discovered 2 exits: *Fac x2) -5/Factory (discovered 2 exits: *Upp x2) -5/Upper Caves -5/Upper Caves -5/Zhirov -4/Proximity Caves -4/Factory (discovered 4 exits: [*Res] / *Upp x2 / Arm) -4/Upper Caves -4/Upper Caves History --------- Turn | Location | Event 15 | -11/Scrapyard | Discovered new exit (range 15) 87 | -11/Scrapyard | Entered Materials 88 | -10/Materials | Met a group of wandering Federalists 212 | -10/Materials | Discovered new exit (range 5) 217 | -10/Materials | Entered Subcaves 217 | -10/Subcaves | Accompanied by 1 ally 218 | -10/Subcaves | Continued accompanying wandering Federalists (6) 218 | -10/Subcaves | Approached by a straggling Scientist 293 | -10/Subcaves | Lost 3 allies 312 | -10/Subcaves | Build established: Mutant 420 | -10/Subcaves | Visited Clippyterm 425 | -10/Subcaves | Learned location of Extension (-6) 425 | -10/Subcaves | Learned Factory stockpile data 456 | -10/Subcaves | Wandering Federalist uncovered a shortcut to Scraptown 688 | -10/Subcaves | Ambushed by angry Subdweller bent on revenge 873 | -10/Subcaves | Shifting Twisted Machinery released Scrap Shield 876 | -10/Subcaves | Shifting Twisted Machinery released Shrapnel Trap 931 | -10/Subcaves | A swath of the cavern ceiling suddenly collapsed 1029 | -10/Subcaves | Build established: Hauler-Mutant 1122 | -10/Subcaves | Shifting Twisted Machinery released Piercing Trap 1125 | -10/Subcaves | Shifting Twisted Machinery released Scrap Shield 1730 | -10/Subcaves | Shifting Twisted Machinery released Sub. Power Source 1746 | -10/Subcaves | Shifting Twisted Machinery released Sub. Laser 1799 | -10/Subcaves | A swath of the cavern ceiling suddenly collapsed 1892 | -10/Subcaves | Scientist uncovered a shortcut to Scraptown 1996 | -10/Subcaves | Learned 2 Materials zone layouts 4277 | -10/Subcaves | Core integrity fell below 50% 5022 | -10/Subcaves | Entered Scraptown 5313 | -7/Scraptown | Scanned Subdweller tech in exchange for log data 5321 | -7/Scraptown | Learned Factory garrison access intel 5325 | -7/Scraptown | Learned Factory terminal intel 5328 | -7/Scraptown | Learned Factory emergency access door positions 5332 | -7/Scraptown | Learned Research interactive machine intel 5336 | -7/Scraptown | Learned location of Warlord (-4) 5534 | -7/Scraptown | Discovered new exit (range 13) 5731 | -7/Scraptown | Visited UFD Registry 5731 | -7/Scraptown | Registered with UFD as "Gearcircuit" 5879 | -7/Scraptown | Visited Chapter 10 5933 | -7/Scraptown | Visited Junk Repository 6001 | -7/Scraptown | Visited Supply Room 6050 | -7/Scraptown | Visited Infowarlord's Domain 6085 | -7/Scraptown | Visited Science Guys 6145 | -7/Scraptown | Visited Abandonware Association 6218 | -7/Scraptown | Visited Scrapoid Research Area 6286 | -7/Scraptown | Visited Curators Association 6542 | -7/Scraptown | Learned abandonware demo "ERRANTS.EXE" 7229 | -7/Scraptown | Visited TADAMA 7286 | -7/Scraptown | Visited Assassins FH 7328 | -7/Scraptown | Visited IN-MT5's Study 7360 | -7/Scraptown | Warned about trapping Scraptown 7976 | -7/Scraptown | Visited Bundlers 8869 | -7/Scraptown | Found Spectral Analyzer 9003 | -7/Scraptown | Discovered new exit (range 3) 9022 | -7/Scraptown | System corruption cleaned by C-Scrubber 9360 | -7/Scraptown | Found Scrap Suit 11907 | -7/Scraptown | Delivered Scrap Shield to a Scientist 12117 | -7/Scraptown | Met Optimus 12117 | -7/Scraptown | Accepted into 0bPrime 12219 | -7/Scraptown | Entered Factory 12219 | -5/Factory | Evolved 10 slots: Power x1, Utility x7, Weapon x2 12222 | -5/Factory | Loaded intel: 25 terminal locations 12223 | -5/Factory | Loaded intel: 4 garrison access locations 12337 | -5/Factory | Scrapoids reinforcements arrived? 12398 | -5/Factory | Found Scrap Suit 12560 | -5/Factory | Garrison activated, responded to threat 12625 | -5/Factory | Identified exit to Upper Caves 12684 | -5/Factory | P-80 Master assimilated allied 05F03-D 12695 | -5/Factory | Scrapoids reinforcements arrived? 12894 | -5/Factory | Entered Upper Caves 12894 | -5/Upper Caves | Accompanied by 4 allies 12896 | -5/Upper Caves | UFD Scientist delivered a prototype 12919 | -5/Upper Caves | Build established: Scavenger-Scrapper 13070 | -5/Upper Caves | Discovered new exit (range 7) 13084 | -5/Upper Caves | Entered another Upper Caves area 13084 | -5/Upper Caves | Accompanied by 4 allies 13200 | -5/Upper Caves | Spotted B-75 Beast 13212 | -5/Upper Caves | Allies destroyed B-75 Beast 13370 | -5/Upper Caves | Attracted the attention of an 0b10 checkpoint 13390 | -5/Upper Caves | Learned location of 1 exit from Proximity Caves 13525 | -5/Upper Caves | Encountered a Warlord checkpoint 13532 | -5/Upper Caves | Discovered new exit (range 14) 13562 | -5/Upper Caves | Entered Zhirov 13562 | -5/Zhirov | Accompanied by 4 allies 13562 | -5/Zhirov | Discovered new exit (range 4) 13582 | -5/Zhirov | Met Zhirov 13601 | -5/Zhirov | Learned location of Quarantine (-3) 13601 | -5/Zhirov | Learned location of Testing (-2) 13601 | -5/Zhirov | Learned location of Command (-1) 13607 | -5/Zhirov | Zhirov requested help retrieving the SGEMP Prototype 13626 | -5/Zhirov | Found Alien Artifact 13626 | -5/Zhirov | Identified Integrated Dissipator 13626 | -5/Zhirov | Installed Integrated Dissipator, increased core heat dissipation (+20) 13884 | -5/Zhirov | Entered Proximity Caves 13884 | -4/Proximity Caves | Accompanied by 4 allies 13885 | -4/Proximity Caves | Identified exit to Factory 14268 | -4/Proximity Caves | Found Prototype Launcher 14268 | -4/Proximity Caves | Identified Scatter Rocket Array 14291 | -4/Proximity Caves | Found Scatter Rocket Array 14583 | -4/Proximity Caves | Entered Factory 14583 | -4/Factory | Accompanied by 5 allies 14583 | -4/Factory | Evolved 2 slots: Utility x2 14643 | -4/Factory | Found Scrap Suit 14775 | -4/Factory | Discovered new exit (range 9) 14925 | -4/Factory | Identified exit to Upper Caves 14925 | -4/Factory | Identified exit to Armory 15072 | -4/Factory | Found Active Sensor Suite 15125 | -4/Factory | Lost 8 parts (3p2u3w) 15131 | -4/Factory | Garrison activated, responded to threat 15167 | -4/Factory | Spotted B-86 Titan 15176 | -4/Factory | Released all parts (10) 15186 | -4/Factory | Core integrity fell below 50% 15190 | -4/Factory | Entered Upper Caves 15200 | -4/Upper Caves | Attracted the attention of an 0b10 outpost 15216 | -4/Upper Caves | Lost 6 parts (1p3u2w) 15216 | -4/Upper Caves | Core integrity fell below 20% 15429 | -4/Upper Caves | Discovered new exit (range 9) 15433 | -4/Upper Caves | Entered another Upper Caves area 15470 | -4/Upper Caves | Learned Research terminal intel 15482 | -4/Upper Caves | Build established: Mutant 15524 | -4/Upper Caves | Destroyed by P-70 Sage with Tesla Rifle Last Messages --------------- 15217_ Slug penetrates F5-UYR(S). 15217_ Slug penetrates Wall. 15237_ FA-XMM(S) destroyed. 15251_ Acquired derelict log, extracted data. World map confirmed: -2/Testing. 15274_ PPLZWB%XGBV37C>AHBCYD>0PRUE 15297_ System corrupted: Component data lost. 15306_ The unstable cave ceiling collapses. 15318_ System corrupted: Energy discharge (-40). 15319_ The unstable cave ceiling collapses. 15352_ System corrupted: Energy discharge (-32). 15352_ Z9-JAK(k) breaks down the debris. 15392_ M-30 Cleanser extracts Dirty Bomb Trap. 15429_ EXIT=FOUND LOCATION=UNKNOWN GOAL=ESCAPE 15448_ System corrupted: Energy discharge (-38). 15470_ Acquired derelict log, extracted data. Data stored: Research terminal intel. 15503_ System corrupted: Energy discharge (-30). Map ----- +----------------------------------------------------+ | ?????????????????????????????????????????????????? | | ?????????????????????????????????????????????????? | | ?????????????????????????????????????????????????? | | ?????????????????????????????????????????????????? | | ?????????????????????????????????????????????????? | | ?????????????????????????????????????????????????? | | ?????????????????????????????????????????????????? | | ??????????????????????#######????????????????????? | | ??????????????????????# #????????????????????? | | ??????????????????????# " " #????????????????????? | | ??????????????????????# " " ##???????????????????? | | ??????????????????????# " ####????????????????? | | ?????????????????????## "" #????????????????? | | ????????????????????## ##????????????????? | | ????????????????????# ##?????????????????? | | ????????????????????# #??????????????????? | | ????????????????????# ##??????????????????? | | ????????????????????# ##???????????????????? | | ????????????????????# #????????????????????? | | ????????????????????## #????????????????????? | | ?????????????????????# ##????????????????????? | | ????????????????????## ##?????????????????????? | | ???????????????????## ##??????????????????????? | | ???????????????????# ##??????????????????????? | | ???????????????????# #?????##???????????????? | | ???????????????????## @### ###?????????????? | | ????????????????????## ??????????? | | ?????????????????????# ??????????? | | ?????????????????????# ## ######???????????? | | ?????????????????????# #? #??#????????????? | | ?????????????????????# #?# ## ????????????? | | ?????????????????????# #??## ?????????????? | | ?????????????????????# #????# p p #???????????? | | ?????????????????????# #????? ##?#####?????? | | ?????????????????????# #?????? ##?## ##????? | | ?????????????????????# #??????# #### #??? ? | | ?????????????????????# ##??????# # ### ? | | ????????????????????## ##?????# ## ?? | | ???????????????????## # ####### ## ???? | | ???????????????????# # ## #?????? | | ???????????????????# # ######## ## #?????? | | ???????????????????# ##?????## ##?#### | | ???????????????????## ##???#### ### | | ????????????????????###?????# | | ??????????????????????????# | | ??????????????????????????## #### | | ???????????????????????????#### #??#### | | ??????????????????????????????## #?????## | | ???????????????????????????????# ???#### | | ???????????????????????????????# ## | +----------------------------------------------------+ Best States ------------- Heat Dissipation 94 Energy Generation 36 Energy Capacity 525 Matter Stores 300 Matter Capacity 300 Sight Range 24 Terrain Scan Range 20 Terrain Scan Density 10 Jamming Range 16 Armor Coverage 225 Weapon Cycling 20 Evasion (%) 50 Core Analysis 6 Recoil Reduction 2 Matter Filtering 50 Offensive Hacking 14 Item Schematics ----------------- IN-MT5's Pitchfork "Insurrection" | -7/Scraptown | Archive Assault Drone Bay | -5/Zhirov | Free Exp. Heat Sink | -5/Zhirov | Free Imp. Arc Thrower | -5/Zhirov | Free Exp. Optical Array | -5/Zhirov | Free Robot Schematics ------------------ None Fabricated ------------ Nothing Repaired ---------- Nothing Alien Tech Used ----------------- Integrated Dissipator Achievements -------------- None Challenges ------------ None Game ------ Seed CooledLinearShifter Manual? 0 Play Time 01:00:36 Cumulative 332.5 hours Start 2025.06.29 @ 11:56:45 End 2025.06.29 @ 13:23:03 Sessions 1 Manual Loads 0 Difficulty Rogue Special Mode None Game No. 320 Rogue 284 Adventurer 36 Explorer 0 Win Type - Total 11 Types 4/0/7/0/0/0/0/0/0/0 Lore% 69 Gallery% 81 Achievement% 74 Wizard Run 0 Options --------- Layout 0 ASCII 0 Keyboard 0 Movement Mouse Keybinds 0 Fullscreen 1 Font 18/SmallcapsGlow Map View 76x50 Zoom Use 0% Tactical HUD 1 Map Filters NONE Filters NONE Steam 1 RUN: 3bd2c6bd-8fb2-48d4-a346-f4f67dec77a0